bitfinex-derivatives/quotes_ETHF0:USTF0_20260121
["timestamp","ask_amount","ask_price","bid_price","bid_amount"]
[1769004147807,0.17102,2926.6,2925.4,3.61457845]
[1769004148403,0.17103,2926.5,2925.4,3.61457845]
[1769004153809,0.17103,2926.5,2925.6,3.60945795]
[1769004155610,1.30495831,2927.8,2925.6,3.60945795]
[1769004155611,0.171,2927.1,2925.6,3.60945795]
[1769004155804,0.171,2926.9,2925.6,3.60945795]
[1769004156004,1.30495831,2927.8,2925.8,3.60945795]
[1769004156211,1.49082186,2927.6,2925.8,3.60945795]
[1769004156406,0.17102,2926.6,2925.8,3.60945795]
[1769004156807,3.68688843,2928.0,2925.8,3.60945795]
[1769004157013,0.17102,2926.7,2925.8,3.60945795]
[1769004161811,1.47333584,2927.7,2925.8,3.60945795]
[1769004162016,1.48669055,2927.6,2925.8,3.60945795]
[1769004162209,1.48669055,2927.4,2925.8,3.60945795]
[1769004162417,1.48669055,2927.2,2925.4,3.61457845]
[1769004162614,0.17107,2925.8,2925.4,0.0051205]
[1769004163217,1.48669055,2927.0,2924.9,3.61200501]
[1769004163218,0.17108,2925.7,2924.9,3.61200501]
[1769004163518,0.17108,2925.6,2924.9,3.61200501]
[1769004163721,0.17106,2926.0,2924.9,3.61200501]
[1769004164314,1.19606657,2926.7,2924.9,3.61200501]
[1769004164517,0.0051205,2925.7,2924.9,3.61200501]
[1769004165624,1.81752908,2926.8,2924.9,3.61200501]
[1769004165625,1.19606657,2926.7,2924.9,3.61200501]
[1769004165826,0.17105,2926.2,2924.9,3.61200501]
[1769004166621,0.17105,2926.1,2924.9,3.61200501]
[1769004167225,1.19606657,2927.0,2924.9,3.61200501]
[1769004167526,0.17102,2926.6,2924.9,3.61200501]
[1769004168430,0.17102,2926.6,2924.9,3.78312501]
[1769004168630,0.171,2926.9,2925.4,3.71727844]
[1769004168827,0.17097,2927.5,2925.6,3.71726844]
[1769004169130,0.17097,2927.5,2926.4,3.54618844]
[1769004169430,0.17098,2927.3,2926.4,3.54618844]
[1769004169825,0.17098,2927.3,2926.3,9.5081205]
[1769004170222,0.17099,2927.1,2926.3,0.0051205]
[1769004170830,0.0051205,2927.0,2926.3,0.0051205]
[1769004171026,0.17101,2926.8,2926.3,0.0051205]
[1769004171239,0.17102,2926.7,2925.6,9.503]
[1769004171925,0.17102,2926.7,2925.7,3.54618844]
[1769004176242,0.17103,2926.5,2925.0,3.54618844]
[1769004176542,0.17104,2926.3,2925.0,3.54618844]
[1769004176836,6.449,2926.9,2925.0,3.54618844]
[1769004177042,0.98120925,2926.8,2925.0,3.54618844]
[1769004177232,0.98120925,2926.7,2925.0,3.54618844]
[1769004177430,6.449,2926.9,2925.0,3.54618844]
[1769004177633,0.17105,2926.1,2925.0,3.54618844]
[1769004179241,0.17106,2925.9,2925.0,3.54618844]
[1769004181639,6.449,2926.9,2925.0,3.54618844]
[1769004181837,0.17103,2926.4,2925.0,3.54618844]
[1769004182140,0.171,2926.9,2925.8,3.76620353]
[1769004182546,0.17101,2926.8,2925.8,3.76620353]
[1769004183339,0.0051205,2927.0,2925.8,3.76620353]
[1769004183538,0.17098,2927.3,2925.8,3.76620353]
[1769004183741,0.17095,2927.9,2925.9,5.62149186]
[1769004183936,0.17091,2928.6,2926.6,3.76620353]
[1769004184140,0.17091,2928.6,2926.5,1.85524833]
[1769004184141,0.17091,2928.6,2926.8,3.76620353]
[1769004184542,0.17091,2928.6,2926.9,3.93720353]
[1769004184738,0.17087,2929.2,2927.2,3.76620353]
[1769004184938,4.27135898,2929.5,2927.3,3.76620353]
[1769004185243,0.17091,2928.6,2927.3,3.76620353]
[1769004185442,3.07529241,2929.1,2927.3,3.76620353]
[1769004185644,0.97935113,2929.0,2927.3,3.76620353]
[1769004185839,3.07529241,2929.1,2927.3,3.76620353]
[1769004186141,0.97947185,2929.0,2927.3,3.76620353]
[1769004186341,0.17094,2928.0,2927.2,0.00337667]
[1769004188245,3.07534991,2928.7,2927.2,0.00337667]
[1769004188451,0.17096,2927.7,2927.2,0.00337667]
[1769004188643,0.17098,2927.3,2926.0,3.76620353]
[1769004189648,0.17435667,2927.3,2926.0,3.76900212]
[1769004190950,0.17435667,2927.3,2926.1,3.76620353]
[1769004191646,0.171,2927.0,2926.1,3.76620353]
[1769004192848,0.00337667,2927.3,2926.3,3.76620353]
[1769004193949,0.171,2927.0,2926.3,3.76620353]
[1769004194150,0.00337667,2927.3,2926.3,3.76620353]
[1769004194954,0.171,2927.0,2926.3,3.76620353]
[1769004195253,0.00337667,2927.3,2926.3,3.76620353]
[1769004196153,0.17096,2927.6,2926.3,3.76620353]
[1769004196543,6.449,2928.4,2926.8,3.73833863]
[1769004196748,0.17095,2927.9,2926.8,3.73833863]
[1769004197145,0.17095,2927.8,2926.8,3.73833863]
[1769004197348,1.19606657,2928.7,2926.8,3.73833863]
[1769004197655,9.06646664,2928.8,2926.8,3.73833863]
[1769004197656,0.17095,2927.9,2926.8,3.73833863]
[1769004197857,6.449,2928.8,2926.8,3.73833863]
[1769004198057,0.17093,2928.3,2926.8,3.73833863]
[1769004198358,0.17093,2928.2,2926.8,3.73833863]
[1769004199064,0.17093,2928.2,2926.8,13.23933863]
[1769004199355,0.17093,2928.2,2926.9,3.73833863]
[1769004203753,0.17093,2928.2,2927.3,3.73833863]
[1769004208261,0.1709,2928.7,2927.3,3.73833863]
[1769004208862,0.17091,2928.5,2927.3,3.73833863]
[1769004209058,2.57846142,2929.0,2927.3,3.73833863]
[1769004209254,0.17093,2928.1,2927.3,3.73833863]
[1769004209656,2.57846142,2929.0,2927.3,3.73833863]
[1769004209862,0.17094,2928.1,2926.9,3.73833863]
[1769004210063,0.17096,2927.6,2926.9,3.73833863]
[1769004210365,0.17097,2927.5,2926.5,3.73833863]
[1769004210562,0.17098,2927.4,2926.5,3.73833863]
[1769004210956,0.17099,2927.2,2926.1,3.73833863]
[1769004211356,1.19606657,2927.9,2926.1,3.73833863]
[1769004211660,0.17103,2926.6,2926.0,0.00279859]
[1769004213163,6.449,2927.5,2926.0,3.74113722]
[1769004213361,0.171,2927.1,2926.0,3.74113722]
[1769004217469,6.449,2927.7,2926.4,3.73833863]
[1769004217865,1.19606657,2928.1,2926.4,3.73833863]
[1769004218071,0.17097,2927.6,2926.4,3.73833863]
[1769004218979,6.449,2928.4,2926.4,3.73833863]
[1769004219164,0.97198929,2928.3,2926.4,3.73833863]
[1769004219371,0.17095,2927.9,2926.9,3.73833863]
[1769004219572,6.449,2928.4,2926.9,3.73833863]
[1769004219769,0.17092,2928.4,2926.9,3.73833863]
[1769004220877,0.17092,2928.4,2927.4,3.73833863]
[1769004221481,0.17088,2929.0,2927.4,3.73833863]
[1769004221687,0.17088,2929.0,2927.9,3.73833863]
[1769004222484,6.449,2929.8,2927.9,3.73833863]
[1769004222687,0.17085,2929.5,2928.4,3.73833863]
[1769004222985,0.17085,2929.5,2928.4,3.74089459]
[1769004224086,0.17082,2930.1,2928.9,3.73833863]
[1769004224781,3.39550801,2931.0,2928.9,3.73833863]
[1769004224975,6.449,2931.3,2928.9,3.73833863]
[1769004225181,1.6826182,2931.0,2928.9,3.73833863]
[1769004225375,0.17084,2929.8,2928.9,3.73833863]
[1769004225589,2.55521168,2930.6,2928.4,3.46507754]
[1769004225778,0.96822885,2930.5,2928.4,3.46507754]
[1769004225984,0.17084,2929.7,2928.4,3.46507754]
[1769004227891,0.17085,2929.6,2928.4,3.46507754]
[1769004228387,0.17085,2929.5,2928.4,3.46507754]
[1769004228583,9.00421168,2930.6,2928.4,3.46507754]
[1769004228783,0.17087,2929.2,2928.4,3.46507754]
[1769004228987,0.17088,2929.1,2928.4,0.00255596]
[1769004229290,0.17089,2928.9,2928.4,0.00255596]
[1769004229491,0.17344596,2928.9,2928.0,3.46252158]
[1769004230386,0.17344596,2928.9,2928.0,3.46539576]
[1769004231184,6.449,2930.1,2928.0,3.46539576]
[1769004231384,0.17085,2929.6,2928.0,3.46539576]
[1769004231789,0.17085,2929.5,2928.0,3.46539576]
[1769004232587,0.17086,2929.4,2928.0,3.46539576]
[1769004233590,0.17087,2929.3,2928.0,3.46539576]
[1769004233789,6.449,2930.1,2928.0,3.46539576]
[1769004233989,0.17084,2929.7,2928.5,3.46252158]
[1769004236691,0.17085,2929.6,2928.5,3.46252158]
[1769004238194,6.449,2930.6,2928.5,3.46252158]
[1769004238393,0.17082,2930.1,2928.5,3.46252158]
[1769004238793,0.17083,2929.9,2928.5,3.46252158]
[1769004241183,9.16034188,2930.6,2928.5,3.46252158]
[1769004241395,0.17087,2929.2,2928.5,3.46252158]
[1769004241693,0.1657595,2929.1,2928.5,3.46252158]
[1769004241892,0.17084,2929.7,2928.5,3.46252158]
[1769004242490,0.17081,2930.3,2928.5,3.46252158]
[1769004242884,0.17081,2930.3,2929.0,3.48357778]
[1769004243788,0.17076,2931.1,2930.0,3.48357778]
[1769004244686,2.71398037,2931.5,2929.5,3.48357778]
[1769004245099,0.1708,2930.5,2929.5,3.48357778]
[1769004246694,0.1708,2930.4,2929.5,3.48357778]
[1769004248297,0.17081,2930.3,2929.1,3.48357778]
[1769004249296,0.17082,2930.1,2929.1,3.48357778]
[1769004249812,0.17082,2930.0,2929.1,3.48357778]
[1769004251399,2.75882659,2930.7,2928.7,3.48357778]
[1769004251597,10.17891466,2930.6,2928.7,3.48357778]
[1769004251803,0.17084,2929.8,2928.7,3.48357778]
[1769004251994,0.17085,2929.5,2928.7,3.48357778]
[1769004253592,0.17082,2930.1,2928.7,3.48357778]
[1769004253798,0.17082,2930.1,2929.0,3.48357778]
[1769004254998,2.41273932,2931.3,2929.0,3.48357778]
[1769004254999,1.19606657,2931.2,2929.0,3.48357778]
[1769004255407,0.17079,2930.6,2929.0,3.48357778]
[1769004256002,1.19606657,2931.3,2929.1,0.17087]
[1769004256306,0.17077,2930.9,2929.2,3.42983133]
[1769004258201,0.17077,2930.9,2929.4,3.42983133]
[1769004258502,0.17077,2930.9,2929.5,9.492]
[1769004258705,0.17077,2930.9,2929.6,3.42983133]
[1769004259106,1.19606657,2931.7,2929.6,3.42983133]
[1769004259306,0.17074,2931.4,2929.6,3.42983133]
[1769004260408,1.19606657,2931.9,2929.6,3.42983133]
[1769004260606,0.17077,2931.0,2929.6,3.42983133]
[1769004260801,0.17077,2931.0,2929.7,3.42983133]
[1769004263313,0.17077,2931.0,2929.7,12.92083133]
[1769004263511,0.17077,2931.0,2929.8,3.42983133]
[1769004265605,0.17078,2930.7,2929.8,3.42983133]
[1769004265811,0.17079,2930.6,2929.8,3.42983133]
[1769004266904,0.17076,2931.2,2929.8,3.42983133]
[1769004271410,1.19606657,2931.9,2929.8,3.42983133]
[1769004271618,0.17073,2931.6,2930.1,3.42983133]
[1769004271815,0.17073,2931.6,2930.1,3.43226211]
[1769004272011,0.17073,2931.6,2930.1,3.60307211]
[1769004272219,0.1707,2932.2,2930.4,3.42983133]
[1769004272414,0.95793067,2932.1,2930.4,3.42983133]
[1769004272611,0.1707,2932.2,2930.4,6.85283133]
[1769004272811,0.1707,2932.2,2930.5,6.85283133]
[1769004273016,0.1707,2932.2,2930.6,3.42983133]
[1769004273719,0.1707,2932.2,2930.8,3.42983133]
[1769004274020,0.1707,2932.2,2930.9,3.42983133]
[1769004278117,0.17071,2932.0,2930.9,3.42983133]
[1769004279211,0.17071,2932.0,2931.2,0.0051205]
[1769004279412,0.17071,2931.9,2931.2,0.0051205]
[1769004279917,0.17072,2931.8,2931.2,0.0051205]
[1769004281006,2.6101219,2932.8,2931.2,0.0051205]
[1769004281213,0.17067,2932.7,2931.2,3.43495183]
[1769004281425,1.36664657,2934.3,2932.0,3.42983133]
[1769004281712,1.36656657,2935.6,2933.5,3.42983133]
[1769004281912,1.19606657,2936.3,2934.4,3.42983133]
[1769004282118,0.17043,2936.8,2934.4,3.42983133]
[1769004282414,0.17042,2936.9,2934.4,3.42983133]
[1769004282620,2.57277583,2937.7,2934.7,3.42983133]
[1769004282821,0.1704,2937.2,2935.0,3.42983133]
[1769004283217,0.05928682,2937.8,2935.9,3.4349424]
[1769004283414,0.17036,2938.1,2935.9,3.43879271]
[1769004283619,0.2785984,2938.4,2936.0,3.42983133]
[1769004283818,0.05927536,2938.1,2936.2,3.42983133]
[1769004284016,2.57277583,2939.3,2936.2,3.42983133]
[1769004284216,0.17024,2940.1,2937.2,3.42983133]
[1769004284425,0.05925921,2939.6,2937.2,3.42983133]
[1769004284616,0.05925921,2939.6,2937.5,3.42983133]
[1769004284826,0.26929445,2941.1,2938.1,3.42983133]
[1769004285122,0.17009,2942.7,2939.1,3.42983133]
[1769004285319,0.17009,2942.7,2939.0,2.09934766]
[1769004285320,0.17009,2942.7,2939.3,3.42983133]
[1769004285521,1.82460159,2944.0,2939.3,3.42983133]
[1769004285522,2.58698759,2942.5,2939.3,3.42983133]
[1769004285715,2.58698759,2942.5,2939.7,3.52135399]
[1769004285916,0.17009,2942.7,2940.3,3.52135399]
[1769004286218,0.17009,2942.7,2940.3,3.52540678]
[1769004286516,3.17102048,2941.7,2939.1,3.52135399]
[1769004286717,3.33712769,2941.5,2938.5,5.62070165]
[1769004286919,2.09934766,2942.9,2941.2,0.00510229]
[1769004286920,0.17016,2941.4,2941.2,0.00510229]
[1769004287128,0.17021,2940.6,2938.1,2.09934766]
[1769004287318,0.17025,2939.8,2937.3,3.52135399]
[1769004287622,0.17027,2939.6,2937.3,0.00281644]
[1769004287938,0.17027,2939.6,2937.3,3.52417043]
[1769004288220,2.04034766,2939.1,2936.0,3.52135399]
[1769004288413,0.17038,2937.7,2934.9,3.52135399]
[1769004288615,0.17038,2937.6,2934.9,3.52135399]
[1769004288817,2.09934766,2938.6,2934.9,3.52135399]
[1769004289034,0.1704,2937.3,2934.9,3.52135399]
[1769004289323,0.00313788,2937.3,2934.9,3.52495152]
[1769004289712,0.00313788,2937.3,2936.1,0.03931055]
[1769004289913,0.00313788,2937.3,2936.1,3.56066454]
[1769004290922,0.00313788,2937.3,2936.7,0.03931055]
[1769004291517,6.0,2937.2,2935.2,3.52135399]
[1769004291720,0.00313788,2937.3,2935.2,3.52135399]
[1769004292028,0.00313788,2937.3,2934.9,0.00359753]
[1769004292219,0.17045,2936.4,2934.9,3.52495152]
[1769004292419,0.17049,2935.8,2934.9,0.00359753]
[1769004292630,0.17051,2935.4,2934.9,7.53e-06]
[1769004293032,6.0,2935.3,2933.5,3.52135399]
[1769004293238,0.17053,2935.1,2931.7,3.52135399]
[1769004293432,0.27863531,2935.4,2934.1,1.17e-06]
[1769004293623,2.06446,2936.3,2934.1,1.17e-06]
[1769004293825,0.17049,2935.7,2932.0,3.52135399]
[1769004294130,0.00248608,2935.7,2932.0,3.52476191]
[1769004294425,0.00248608,2935.7,2932.0,44.32476191]
[1769004294618,0.17056,2934.6,2932.1,3.52135399]
[1769004295026,1.894,2935.5,2932.1,3.52135399]
[1769004295228,0.17056,2934.5,2932.1,3.52135399]
[1769004295721,0.17051,2935.4,2932.1,3.52135399]
[1769004295931,0.17051,2935.4,2932.3,3.52135399]
[1769004296331,0.00248608,2935.7,2932.5,3.52135399]
[1769004296533,0.00248608,2935.7,2932.8,3.52135399]
[1769004297031,0.1705,2935.5,2932.8,3.52135399]
[1769004297330,0.1705,2935.5,2933.0,3.52135399]
[1769004297535,0.17052,2935.3,2933.0,3.52135399]
[1769004297938,0.00248608,2935.7,2933.0,3.52135399]
[1769004298437,0.17051,2935.4,2933.2,3.63289968]
[1769004298738,0.00248608,2935.7,2933.2,3.63289968]
[1769004299530,0.00248608,2935.7,2933.4,3.63289968]
[1769004300032,0.1705,2935.5,2933.4,3.63289968]
[1769004300535,0.00248608,2935.7,2933.4,3.63289968]
[1769004300734,0.17053,2935.1,2933.4,3.63289968]
[1769004300932,0.00248608,2935.7,2933.4,3.63289968]
[1769004301527,0.17053,2935.1,2933.4,3.63289968]
[1769004302130,0.00511117,2934.5,2933.4,3.63289968]
[1769004302626,0.00248608,2935.7,2933.4,3.63289968]
[1769004302821,0.00248608,2935.7,2933.8,3.63289968]
[1769004303529,0.1705,2935.6,2933.8,3.63289968]
[1769004304024,0.00248608,2935.7,2933.8,3.63289968]
[1769004304328,0.00248608,2935.7,2934.0,3.63289968]
[1769004304530,0.17041,2937.2,2934.3,3.63289968]
[1769004304732,3.51776361,2938.2,2933.9,7.87667061]
[1769004304733,0.05929824,2937.8,2934.5,3.63289968]
[1769004304929,0.17042,2937.0,2934.7,3.63289968]
[1769004305135,3.51776361,2938.2,2934.6,0.17055]
[1769004305136,0.17037,2937.9,2936.0,3.63289968]
[1769004305329,0.1704,2937.3,2936.0,3.63289968]
[1769004305529,0.17381091,2937.3,2936.0,3.63565606]
[1769004305825,0.00341091,2937.3,2936.0,3.63565606]
[1769004306327,1.18293547,2939.7,2936.0,3.63565606]
[1769004306538,0.05925931,2939.2,2936.2,3.63289968]
[1769004306835,0.17028,2939.4,2936.8,3.63289968]
[1769004307030,0.17028,2939.3,2936.8,3.80332968]
[1769004307235,0.05924327,2940.1,2936.8,3.63289968]
[1769004307431,0.17032,2938.7,2936.8,3.63289968]
[1769004307630,0.17032,2938.7,2937.8,3.63801085]
[1769004307835,0.17029,2939.2,2937.8,3.63801085]
[1769004308037,0.00511117,2938.5,2937.8,3.63801085]
[1769004308541,0.17029,2939.2,2937.8,3.63801085]
[1769004309537,0.00313803,2940.1,2937.8,3.63801085]
[1769004309737,0.00511117,2938.8,2937.0,40.8]
[1769004309934,0.17035,2938.2,2934.8,2.69528894]
[1769004310135,0.00511117,2938.8,2935.9,9.473]
[1769004310330,0.00511117,2938.8,2936.4,40.8]
[1769004310734,0.17034,2938.4,2936.4,40.8]
[1769004311036,0.17035,2938.2,2937.3,0.00511117]
[1769004311646,0.00511117,2938.8,2937.3,0.00511117]
[1769004311836,0.00511117,2938.8,2937.4,3.63289968]
[1769004312243,0.17027,2939.6,2937.4,3.63289968]
[1769004312544,0.17337803,2940.1,2937.6,3.80327968]
[1769004312738,0.17337803,2940.1,2937.8,3.63289968]
[1769004313145,0.00313803,2940.1,2938.1,3.63289968]
[1769004313440,0.00313803,2940.1,2938.3,3.80323968]
[1769004313949,0.00313803,2940.1,2938.9,3.63289968]
[1769004314243,1.77722179,2942.8,2938.9,3.80319968]
[1769004314451,0.17018,2941.2,2938.9,3.63289968]
[1769004314654,0.0592089,2941.8,2938.9,3.63289968]
[1769004314853,0.17022,2940.5,2939.8,2.29e-06]
[1769004315350,0.17165174,2940.5,2939.8,2.29e-06]
[1769004315853,0.17165174,2940.5,2938.9,3.63289968]
[1769004316351,0.17024,2940.1,2938.9,3.63289968]
[1769004316652,0.17024,2940.0,2938.9,3.63289968]
[1769004316850,0.17025,2939.8,2938.2,3.44920463]
[1769004317050,0.00143174,2940.5,2938.2,3.44920463]
[1769004317548,0.0592089,2941.8,2938.9,3.44920463]
[1769004317950,0.17017,2941.2,2938.9,3.44920463]
[1769004318355,0.17017,2941.2,2938.8,2.85850239]
[1769004318356,0.00510229,2940.6,2940.1,3.45430692]
[1769004318852,2.68819239,2943.6,2940.1,3.45430692]
[1769004319044,0.17009,2942.6,2940.1,3.45430692]
[1769004319349,0.17009,2942.6,2940.3,3.44920463]
[1769004319542,0.17007,2943.0,2940.3,3.45321608]
[1769004319741,0.17007,2943.0,2940.3,3.62343608]
[1769004319949,0.17007,2943.0,2940.5,3.44920463]
[1769004320153,0.17007,2943.0,2940.5,3.61941463]
[1769004320346,0.17002,2943.9,2941.2,2.68819239]
[1769004320546,3.23675214,2946.1,2940.3,0.00401145]
[1769004320547,0.16996,2945.0,2942.0,3.44920463]
[1769004320849,0.16998,2944.5,2942.6,3.44920463]
[1769004321049,0.16998,2944.5,2942.6,3.45296727]
[1769004321246,0.05913897,2945.1,2942.6,3.45296727]
[1769004321652,2.68819239,2946.1,2942.6,3.45296727]
[1769004321852,0.16994,2945.3,2942.6,3.45296727]
[1769004322052,0.16989,2946.1,2943.2,3.44920463]
[1769004322350,0.16986,2946.7,2943.7,3.44920463]
[1769004322546,2.68819239,2947.8,2944.1,3.44920463]
[1769004322750,0.05909769,2947.6,2944.7,3.44920463]
[1769004322944,0.16983,2947.2,2944.7,3.45186846]
[1769004323354,2.68819239,2947.7,2944.7,3.45186846]
[1769004323548,0.16988,2946.2,2944.7,3.45186846]
[1769004323854,0.05908625,2948.0,2944.7,3.45186846]
[1769004323855,0.16991,2945.8,2944.7,0.00266383]
[1769004324153,2.68819239,2946.5,2942.8,2.68819239]
[1769004324352,2.68819239,2945.9,2943.3,3.44920463]
[1769004324556,0.16997,2944.7,2943.3,3.44920463]
[1769004324759,1.892,2947.5,2942.7,3.44920463]
[1769004324760,2.68819239,2945.3,2942.7,3.44920463]
[1769004324956,0.17001,2944.1,2942.7,3.44920463]
[1769004325166,0.17258158,2944.1,2942.7,3.45186499]
[1769004325555,0.00257158,2944.1,2942.7,3.45186499]
[1769004325861,0.17258158,2944.1,2942.7,3.45186499]
[1769004326159,0.00257158,2944.1,2942.8,3.44920463]
[1769004326348,0.00509354,2944.3,2942.8,3.44920463]
[1769004326753,0.1699,2945.9,2942.8,3.44920463]
[1769004326958,0.1699,2945.9,2943.3,3.45429817]
[1769004327358,2.68819239,2946.6,2943.3,3.45429817]
[1769004327865,2.68819239,2947.2,2943.3,3.45429817]
[1769004328259,0.16988,2946.3,2943.9,3.44920463]
[1769004328462,0.16985,2946.9,2944.5,3.44920463]
[1769004328658,0.16985,2946.8,2945.0,3.45429817]
[1769004328860,0.16988,2946.3,2945.0,0.00894976]
[1769004329068,0.1699,2946.0,2944.3,3.44920463]
[1769004329963,0.16991,2945.8,2944.3,3.44920463]
[1769004330165,0.16992,2945.7,2944.3,3.45317278]
[1769004330557,0.00327196,2945.8,2944.3,3.45317278]
[1769004330758,0.00509354,2946.2,2944.6,3.44920463]
[1769004332262,0.16991,2945.8,2944.6,3.44920463]
[1769004332662,0.00509354,2946.2,2944.3,0.00396815]
[1769004332862,0.11088363,2946.0,2942.2,0.17011]
[1769004333067,2.68819239,2945.5,2941.5,2.85834239]
[1769004333269,2.68819239,2945.5,2941.6,40.8]
[1769004333270,0.17001,2944.0,2941.6,40.8]
[1769004333566,0.17002,2943.9,2941.8,2.68819239]
[1769004333764,0.0027707,2943.9,2942.5,0.6714986]
[1769004333965,0.00509354,2944.3,2942.5,0.6714986]
[1769004334366,0.00509354,2944.3,2943.1,0.00509354]
[1769004334569,0.00509354,2944.3,2943.2,3.44920463]
[1769004334969,0.0069675,2944.3,2943.2,3.44920463]
[1769004335869,0.16993,2945.4,2943.2,3.44920463]
[1769004336168,0.16989,2946.2,2943.4,3.44920463]
[1769004336469,2.42908034,2948.0,2944.9,3.44920463]
[1769004336470,0.05908625,2948.0,2944.9,3.44920463]
[1769004336769,0.05908625,2948.0,2943.5,45.29617985]
[1769004336770,0.16975,2948.6,2946.1,3.44920463]
[1769004336972,0.16975,2948.6,2946.1,3.4527787]
[1769004337171,0.23685007,2949.4,2947.2,3.44920463]
[1769004337375,0.16975,2948.6,2947.2,3.44920463]
[1769004337567,0.23685007,2949.4,2947.1,0.00509354]
[1769004337568,0.16976,2948.3,2947.1,0.00509354]
[1769004337874,0.16981,2947.5,2946.1,0.00357407]
[1769004338073,0.00509354,2948.1,2945.1,3.44920463]
[1769004338074,2.7969703,2947.8,2945.1,3.44920463]
[1769004338369,2.7969703,2947.8,2943.1,3.4]
[1769004338370,0.1699,2945.9,2943.6,2.68819239]
[1769004338569,2.68819239,2946.6,2943.0,2.68819239]
[1769004338768,0.16993,2945.4,2942.6,31.5876895]
[1769004338965,0.00509354,2945.1,2944.5,0.00509354]
[1769004339170,0.00826243,2945.1,2944.5,0.00811523]
[1769004339567,0.16997,2944.7,2942.5,0.66795315]
[1769004339767,0.00826243,2945.1,2942.5,0.66795315]
[1769004339972,0.00826243,2945.1,2942.6,40.8]
[1769004340375,0.00826243,2945.1,2942.7,3.44920463]
[1769004340573,0.00826243,2945.1,2942.7,3.4527118]
[1769004340775,0.00826243,2945.1,2943.7,3.44920463]
[1769004341480,0.16986,2946.7,2943.7,3.44920463]
[1769004341973,2.68819239,2947.3,2943.7,3.44920463]
[1769004342170,0.9072095,2947.2,2943.7,3.44920463]
[1769004342372,2.68819239,2947.3,2943.7,3.44920463]
[1769004342575,0.91063197,2947.2,2943.7,3.44920463]
[1769004342773,0.00509354,2945.7,2943.7,3.44920463]
[1769004342972,0.00342687,2947.2,2944.0,3.44920463]
[1769004343187,0.00342687,2947.2,2944.9,3.44920463]
[1769004343479,0.00342687,2947.2,2945.1,3.44920463]
[1769004344775,2.68819239,2948.8,2945.5,3.44920463]
[1769004344966,0.16977,2948.3,2945.5,3.44920463]
[1769004345478,0.1698,2947.6,2945.5,3.44920463]
[1769004345873,0.1698,2947.6,2946.3,3.77916643]
[1769004346668,0.22293452,2949.3,2946.3,3.77916643]
[1769004346669,0.16976,2948.4,2946.3,3.77916643]
[1769004346875,0.23685007,2949.4,2946.3,3.77916643]
[1769004347375,0.16972,2949.0,2946.7,3.77407289]
[1769004347576,0.23685007,2949.4,2947.3,3.77407289]
[1769004347774,0.23685007,2949.4,2947.5,3.94388289]
[1769004348180,0.16965,2950.3,2948.3,3.77407289]
[1769004348376,0.1696,2951.2,2948.3,3.77407289]
[1769004348570,0.16955,2952.0,2948.9,3.77407289]
[1769004348776,3.47945906,2952.6,2948.7,0.16974]
[1769004348777,2.05248888,2953.1,2950.1,3.77407289]
[1769004349075,2.05248888,2953.1,2950.1,3.77831325]
[1769004349076,2.68819239,2952.3,2950.1,3.77831325]
[1769004349375,0.16961,2951.0,2949.3,3.77407289]
[1769004349570,0.16956,2951.9,2949.3,3.77407289]
[1769004349769,2.68819239,2952.9,2949.6,3.77407289]
[1769004350079,2.68819239,2952.3,2949.6,3.77407289]
[1769004350280,2.69069242,2952.3,2949.6,3.77711038]
[1769004350580,0.16959,2951.4,2949.6,3.77711038]
[1769004350781,2.68819239,2951.7,2949.6,3.77711038]
[1769004350976,0.16962,2950.8,2949.6,0.00303749]
[1769004351379,2.85776239,2951.7,2949.6,0.00303749]
[1769004351574,2.85776239,2951.7,2949.6,3.77711038]
[1769004351575,0.16957,2951.7,2949.6,3.77711038]
[1769004351775,2.68819239,2951.7,2949.6,3.77711038]
[1769004351971,2.68819239,2951.7,2949.6,0.00303749]
[1769004352577,0.16959,2951.3,2949.6,0.00303749]
[1769004352771,2.68819239,2951.1,2949.6,0.00303749]
[1769004352976,0.16962,2950.7,2949.6,0.00303749]
[1769004353274,0.16965,2950.2,2949.0,3.77407289]
[1769004353474,0.16971,2949.2,2946.6,0.16986]
[1769004353871,0.16971,2949.2,2946.6,40.8]
[1769004354080,0.17353211,2949.2,2946.6,40.80273297]
[1769004354275,0.00382211,2949.2,2946.6,40.80273297]
[1769004354479,0.00382211,2949.2,2946.6,0.00273297]
[1769004354880,0.16964,2950.5,2947.6,2.68819239]
[1769004355081,2.68819239,2950.8,2947.6,0.00508475]
[1769004355282,0.16961,2951.0,2947.8,0.16979]
[1769004355473,0.16963,2950.7,2947.9,3.77407289]
[1769004355679,0.16958,2951.5,2948.3,3.77407289]
[1769004355874,0.17218017,2951.5,2949.2,3.77407289]
[1769004356080,0.16959,2951.4,2949.2,3.77675797]
[1769004356282,1.77722179,2953.9,2949.2,3.77675797]
[1769004356483,2.61749453,2955.4,2951.8,3.77407289]
[1769004356686,0.16941,2954.4,2951.8,3.77407289]
[1769004356983,0.16942,2954.2,2951.8,3.77407289]
[1769004357182,0.00085557,2954.2,2951.8,3.77809747]
[1769004358573,0.16943,2954.1,2951.8,3.77809747]
[1769004358775,0.00085557,2954.2,2951.9,4.3648717]
[1769004359081,0.00085557,2954.2,2952.0,3.47920817]
[1769004359587,0.16935,2955.5,2952.4,3.47920817]
[1769004359785,0.16937,2955.1,2952.4,3.47920817]
[1769004360188,0.29357832,2955.7,2951.8,0.00402458]
[1769004360189,1.04412634,2955.6,2951.8,0.00402458]
[1769004360482,0.87477634,2954.8,2951.8,3.48323275]
[1769004360680,0.16948,2953.2,2951.8,3.48323275]
[1769004360875,3.54348351,2954.3,2949.8,2.6851349]
[1769004361080,0.16948,2953.2,2950.0,2.6851349]
[1769004361283,1.19578403,2954.8,2950.7,2.6851349]
[1769004361476,1.19578403,2954.2,2950.1,7.99912498]
[1769004361679,1.19578403,2953.4,2948.6,23.756]
[1769004361876,1.19578403,2952.8,2948.6,2.6851349]
[1769004362075,1.19919162,2953.4,2951.1,0.00508475]
[1769004362281,1.19919162,2953.4,2949.3,2.68927854]
[1769004362482,1.19919162,2953.4,2949.3,0.00414364]
[1769004362483,1.19578403,2952.6,2949.3,0.00414364]
[1769004362686,1.19578403,2952.0,2949.3,0.00414364]
[1769004362878,0.16957,2951.7,2949.3,3.48335181]
[1769004363084,1.12879407,2952.7,2949.3,3.48335181]
[1769004363484,2.6851349,2952.1,2949.3,3.48335181]
[1769004363688,0.17287759,2953.4,2950.3,3.64885817]
[1769004363888,0.17287759,2953.4,2949.4,7.98778795]
[1769004363889,0.16948,2953.2,2950.8,3.47920817]
[1769004364384,0.00340759,2953.4,2950.8,3.47920817]
[1769004364585,0.16949,2953.1,2950.8,3.47920817]